bitfinex-derivatives/quotes_BTCF0:USTF0_20251202
["timestamp","ask_amount","ask_price","bid_price","bid_amount"]
[1764663607970,0.00017319,86652.0,86651.0,0.33366]
[1764663609474,0.00617319,86652.0,86651.0,0.33466]
[1764663610578,0.00617319,86652.0,86651.0,0.83466]
[1764663614983,0.00617319,86652.0,86651.0,1.19546]
[1764663615692,0.00617319,86652.0,86651.0,1.69546]
[1764663616404,2.61134732,86660.0,86659.0,0.0115402]
[1764663616691,0.10602,86695.0,86686.0,0.0115366]
[1764663616991,0.27052,86688.0,86686.0,0.0115366]
[1764663617188,0.44117,86688.0,86686.0,0.0115366]
[1764663617686,0.27052,86688.0,86686.0,0.0115366]
[1764663617994,0.10602,86688.0,86686.0,0.0115366]
[1764663618188,0.3708813,86695.0,86694.0,0.0115356]
[1764663619394,0.3728813,86695.0,86694.0,0.0115356]
[1764663620983,0.3708813,86695.0,86694.0,0.0115356]
[1764663621183,0.3718813,86695.0,86694.0,0.0115356]
[1764663621395,0.3718813,86695.0,86694.0,0.5115356]
[1764663622398,0.3718813,86695.0,86694.0,0.5]
[1764663626597,0.3834167,86695.0,86694.0,0.5]
[1764663626993,0.3834167,86695.0,86694.0,0.23356]
[1764663627195,0.3466876,86679.0,86678.0,0.27011069]
[1764663627395,0.33515,86679.0,86678.0,0.27011069]
[1764663627897,0.27052,86681.0,86680.0,0.2584]
[1764663628298,0.44117,86681.0,86680.0,0.2584]
[1764663629105,0.1645,86681.0,86680.0,0.2584]
[1764663629299,0.3608,86691.0,86690.0,0.2584]
[1764663629706,0.3608,86691.0,86690.0,0.7584]
[1764663630200,0.5253,86691.0,86690.0,0.7584]
[1764663630406,0.3608,86691.0,86690.0,0.7584]
[1764663630804,0.5253,86691.0,86690.0,0.7584]
[1764663631001,0.3608,86691.0,86690.0,0.7584]
[1764663631504,0.3608,86691.0,86690.0,1.2584]
[1764663631699,0.0357313,86695.0,86694.0,0.68793]
[1764663631899,0.7247867,86695.0,86694.0,0.68793]
[1764663633510,0.7247867,86695.0,86694.0,1.18793]
[1764663633709,0.0357313,86695.0,86694.0,1.18793]
[1764663633894,0.7290313,86695.0,86694.0,1.18793]
[1764663636005,0.0357313,86695.0,86694.0,1.18793]
[1764663636203,0.7290313,86695.0,86694.0,1.18793]
[1764663636702,0.7290313,86695.0,86694.0,1.20031104]
[1764663641209,0.7290313,86695.0,86694.0,1.18793]
[1764663642001,0.7290313,86695.0,86694.0,1.20027715]
[1764663642321,0.75456652,86695.0,86694.0,1.20027715]
[1764663642616,0.75456652,86695.0,86694.0,1.18793]
[1764663645407,0.75456652,86695.0,86694.0,0.5]
[1764663646117,0.75456652,86695.0,86686.0,0.5382]
[1764663646118,0.6933,86687.0,86686.0,0.5382]
[1764663646311,0.73037172,86687.0,86686.0,0.5382]
[1764663646517,0.73037172,86687.0,86686.0,1.20742]
[1764663647422,0.73137172,86687.0,86686.0,1.20742]
[1764663657527,0.03807172,86687.0,86686.0,1.20742]
[1764663658034,0.03807172,86687.0,86686.0,1.70742]
[1764663658732,0.03807172,86687.0,86686.0,2.20742]
[1764663659824,0.73137172,86687.0,86686.0,2.20742]
[1764663660526,0.73037172,86687.0,86686.0,2.20742]
[1764663660828,0.73037172,86687.0,86686.0,2.20942]
[1764663661129,0.73037172,86687.0,86686.0,1.70942]
[1764663661630,0.73037172,86687.0,86686.0,1.0402]
[1764663661831,0.73037172,86687.0,86660.0,0.3608]
[1764663661832,0.011539,86668.0,86660.0,0.3608]
[1764663662025,0.70484,86661.0,86660.0,0.66922]
[1764663662220,0.7301053,86661.0,86660.0,0.66939309]
[1764663663428,0.7301053,86661.0,86660.0,1.16939309]
[1764663663934,0.7301053,86661.0,86660.0,1.17339309]
[1764663664319,0.70484,86661.0,86660.0,1.17339309]
[1764663664835,0.00017309,86669.0,86668.0,0.6776]
[1764663665137,0.00017309,86669.0,86668.0,1.5764]
[1764663666034,0.00017309,86669.0,86668.0,1.5784]
[1764663666334,0.00017309,86669.0,86668.0,2.0784]
[1764663667025,0.00017309,86669.0,86668.0,2.5784]
[1764663669429,0.00017309,86669.0,86668.0,2.9984]
[1764663669630,0.3608,86686.0,86668.0,2.4608]
[1764663669631,0.0115372,86682.0,86668.0,2.4608]
[1764663669830,0.26262739,86702.0,86684.0,0.6776]
[1764663669831,0.0115368,86685.0,86684.0,0.6776]
[1764663670137,0.0115368,86685.0,86684.0,1.21564]
[1764663671528,0.3570068,86685.0,86684.0,1.21564]
[1764663671731,0.7142068,86685.0,86684.0,1.21564]
[1764663671929,0.7152068,86685.0,86684.0,1.21564]
[1764663672134,0.7152068,86685.0,86684.0,1.71564]
[1764663672637,0.7142068,86685.0,86684.0,1.71564]
[1764663674741,0.7152068,86685.0,86684.0,1.71564]
[1764663675432,1.0760068,86685.0,86684.0,1.71564]
[1764663678428,1.0750068,86685.0,86684.0,1.71564]
[1764663678624,0.0115365,86688.0,86687.0,0.6776]
[1764663679235,0.0115365,86688.0,86687.0,0.6891365]
[1764663679435,0.0115365,86688.0,86687.0,1.1891365]
[1764663679749,0.001,86688.0,86687.0,1.1891365]
[1764663680437,0.001,86688.0,86687.0,1.6891365]
[1764663681428,0.0115362,86690.0,86689.0,0.6776]
[1764663681734,0.0115362,86690.0,86689.0,1.21536]
[1764663682233,0.7142062,86690.0,86689.0,1.21536]
[1764663682439,0.7142062,86690.0,86689.0,1.71536]
[1764663688246,0.7142062,86690.0,86689.0,1.71516]
[1764663692446,0.0115362,86690.0,86689.0,1.71533309]
[1764663693448,0.00017309,86693.0,86689.0,1.71533309]
[1764663693449,0.00017309,86693.0,86692.0,0.6926]
[1764663693639,0.00017309,86693.0,86692.0,1.1026]
[1764663694037,0.00017309,86693.0,86692.0,0.6926]
[1764663694237,0.00017309,86693.0,86692.0,0.8126]
[1764663694640,0.00017309,86693.0,86692.0,0.6926]
[1764663695241,0.00017309,86693.0,86692.0,1.1926]
[1764663695448,0.3723346,86702.0,86694.0,0.13306]
[1764663695648,0.03646054,86701.0,86700.0,0.6926]
[1764663695848,0.38173054,86701.0,86700.0,1.23]
[1764663696043,0.38173054,86701.0,86700.0,1.23017309]
[1764663696438,0.72867054,86701.0,86700.0,1.23017309]
[1764663696744,0.72867054,86701.0,86700.0,1.24216746]
[1764663697351,0.73067054,86701.0,86700.0,1.74216746]
[1764663697943,0.7057449,86701.0,86700.0,1.74216746]
[1764663698142,0.73067113,86701.0,86700.0,1.74216746]
[1764663700353,0.72867113,86701.0,86700.0,1.74216746]
[1764663707062,0.72967113,86701.0,86700.0,1.74216746]
[1764663707458,0.72867113,86701.0,86700.0,1.74216746]
[1764663709461,0.72967113,86701.0,86700.0,1.74216746]
[1764663710052,0.7047449,86701.0,86700.0,1.74216746]
[1764663710363,0.72969064,86701.0,86700.0,1.74216746]
[1764663710752,0.38275064,86701.0,86700.0,1.87522746]
[1764663710951,0.72969064,86701.0,86700.0,1.87522746]
[1764663711147,0.72969064,86701.0,86700.0,1.74216746]
[1764663711559,0.72869064,86701.0,86700.0,1.74216746]
[1764663711959,0.72869064,86701.0,86700.0,1.73017309]
[1764663712159,0.72869064,86701.0,86700.0,0.5]
[1764663712354,0.72869064,86701.0,86690.0,0.0832]
[1764663712355,0.703746,86691.0,86690.0,0.0832]
[1764663712558,0.9098674,86680.0,86679.0,0.75479493]
[1764663712762,0.9098674,86680.0,86679.0,1.22976]
[1764663712961,0.9098674,86680.0,86679.0,1.24169474]
[1764663713362,0.9098674,86680.0,86679.0,1.74169474]
[1764663716562,0.7037474,86680.0,86679.0,1.74169474]
[1764663717662,0.34527,86685.0,86684.0,0.6926]
[1764663717862,0.69238309,86688.0,86687.0,0.6926]
[1764663718065,0.9098674,86680.0,86679.0,1.04909474]
[1764663720665,0.9098674,86680.0,86679.0,0.5]
[1764663720867,0.93520225,86680.0,86679.0,0.5]
[1764663721275,0.7037478,86677.0,86676.0,0.00017309]
[1764663721490,1.08988265,86677.0,86676.0,0.00017309]
[1764663721660,1.08988265,86677.0,86676.0,0.69277309]
[1764663722471,0.0115377,86679.0,86678.0,0.68164]
[1764663722672,0.68933,86684.0,86683.0,0.68164]
[1764663722872,0.3608,86684.0,86683.0,1.21884]
[1764663723370,0.00017309,86688.0,86687.0,0.6931765]
[1764663723568,0.00017309,86688.0,86687.0,1.0731765]
[1764663724273,0.00017309,86688.0,86687.0,0.68164]
[1764663724480,0.00017309,86688.0,86687.0,1.09164]
[1764663725672,0.00017309,86688.0,86687.0,1.59164]
[1764663725871,0.00017309,86688.0,86687.0,1.59264]
[1764663726272,0.00017309,86688.0,86687.0,1.59164]
[1764663726487,0.00017309,86688.0,86687.0,2.09364]
[1764663726867,0.67904309,86688.0,86687.0,1.68164]
[1764663727072,0.89041309,86688.0,86687.0,2.22084]
[1764663727968,0.89041309,86688.0,86687.0,1.72084]
[1764663729284,0.89041309,86688.0,86687.0,1.71884]
[1764663732490,0.89141309,86688.0,86687.0,1.71884]
[1764663733484,0.89041309,86688.0,86687.0,1.71884]
[1764663734984,0.89141309,86688.0,86687.0,1.71884]
[1764663735889,0.89041309,86688.0,86687.0,1.71884]
[1764663740490,0.91661739,86688.0,86687.0,1.71884]
[1764663741592,0.91761739,86688.0,86687.0,1.71884]
[1764663741783,1.27841739,86688.0,86687.0,0.84915]
[1764663741981,1.27741739,86688.0,86687.0,0.5]
[1764663742182,0.6904076,86679.0,86678.0,1.2188]
[1764663742995,0.6904076,86679.0,86678.0,1.7188]
[1764663743374,0.6904076,86679.0,86678.0,2.2188]
[1764663743992,0.67887,86679.0,86678.0,2.2188]
[1764663744396,0.67887,86679.0,86678.0,1.7188]
[1764663745893,0.3400674,86681.0,86680.0,0.68164]
[1764663746190,0.36645482,86681.0,86680.0,0.68164]
[1764663746389,0.71679482,86681.0,86680.0,0.68164]
[1764663747580,0.02638742,86681.0,86680.0,0.86646]
[1764663747787,0.690407,86684.0,86683.0,0.68164]
[1764663748095,0.71678693,86684.0,86683.0,0.68164]
[1764663750090,0.35490993,86684.0,86683.0,0.68164]
[1764663750296,0.02637993,86684.0,86683.0,2.0888]
[1764663750491,0.67904309,86688.0,86687.0,0.6931765]
[1764663750995,0.70542117,86688.0,86687.0,0.6931765]
[1764663751195,0.70542117,86688.0,86687.0,0.68164]
[1764663751499,0.70542117,86688.0,86687.0,0.6931765]
[1764663751686,0.70542117,86688.0,86687.0,0.6941765]
[1764663752392,0.70542117,86688.0,86687.0,0.6931765]
[1764663752598,0.70542117,86688.0,86687.0,1.1931765]
[1764663753296,0.50545059,86688.0,86687.0,1.1931765]
[1764663753798,0.50545059,86688.0,86687.0,1.1941765]
[1764663754292,0.50545059,86688.0,86687.0,1.1931765]
[1764663754600,0.50545059,86688.0,86687.0,1.1941765]
[1764663755395,0.12873251,86688.0,86687.0,1.1941765]
[1764663755589,0.12873251,86688.0,86687.0,1.18264]
[1764663755996,0.47916251,86688.0,86687.0,1.18264]
[1764663756401,0.47916251,86688.0,86687.0,1.1941765]
[1764663756602,0.0115357,86693.0,86692.0,0.68811]
[1764663756799,0.71495309,86696.0,86695.0,0.86156]
[1764663756994,1.09159123,86696.0,86695.0,0.86156]
[1764663757899,0.38718123,86696.0,86695.0,1.36156]
[1764663759307,0.36097309,86696.0,86695.0,1.36156]
[1764663759602,0.35201309,86696.0,86695.0,1.36156]
[1764663760404,0.69927309,86696.0,86695.0,1.36256]
[1764663761204,0.00017309,86696.0,86695.0,1.36256]
[1764663761504,0.06166739,86717.0,86695.0,1.36256]
[1764663761505,0.7106335,86710.0,86709.0,0.71877]
[1764663761693,0.94700109,86710.0,86709.0,0.71877]
[1764663761888,0.94700109,86710.0,86702.0,0.53712]
[1764663761889,0.7106344,86703.0,86702.0,0.89606]
[1764663762093,0.73683199,86703.0,86702.0,0.89606]
[1764663762510,0.73683199,86703.0,86702.0,1.25589]
[1764663763404,0.73683199,86703.0,86702.0,1.75589]
[1764663763599,0.73783199,86703.0,86702.0,1.75589]
[1764663764104,0.73683199,86703.0,86702.0,1.75589]
[1764663764297,0.73783199,86703.0,86702.0,1.75589]
[1764663765194,1.09863199,86703.0,86702.0,1.75589]
[1764663768292,1.0724344,86703.0,86702.0,1.75589]
[1764663769809,1.0714344,86703.0,86702.0,1.75589]
[1764663770004,1.0724344,86703.0,86702.0,1.75589]
[1764663770410,1.0714344,86703.0,86702.0,1.75589]
[1764663772604,1.0724344,86703.0,86702.0,1.75589]
[1764663773000,1.0714344,86703.0,86702.0,1.75589]
[1764663773202,1.0724344,86703.0,86702.0,1.75589]
[1764663773907,0.7116344,86703.0,86702.0,1.75589]
[1764663775318,0.73807743,86703.0,86702.0,1.75589]
[1764663775716,0.73707743,86703.0,86702.0,1.75589]
[1764663776413,0.73807743,86703.0,86702.0,1.75589]
[1764663780133,0.73707743,86703.0,86702.0,1.75589]
[1764663780431,0.73807743,86703.0,86702.0,1.75589]
[1764663782333,0.73707743,86703.0,86702.0,1.75589]
[1764663782530,0.73807743,86703.0,86702.0,1.75589]
[1764663783630,0.73707743,86703.0,86702.0,1.75589]
[1764663783929,0.72554303,86703.0,86702.0,1.75589]
[1764663784829,0.37828303,86703.0,86702.0,1.75589]
[1764663786330,0.02644303,86703.0,86702.0,1.75589]
[1764663787627,0.02478903,86703.0,86702.0,2.18589]
[1764663787831,0.0115331,86713.0,86710.0,0.67347]
[1764663788029,0.0115331,86713.0,86710.0,1.21043]
[1764663788329,0.66497309,86711.0,86710.0,1.21043]
[1764663788834,0.66497309,86711.0,86710.0,1.71043]
[1764663789034,0.66597309,86711.0,86710.0,1.71043]
[1764663796040,0.66597309,86711.0,86710.0,0.5]
[1764663796242,0.676335,86698.0,86697.0,0.41189]
[1764663796436,1.037135,86698.0,86697.0,0.41189]
[1764663796640,1.037135,86698.0,86697.0,0.75667]
[1764663796954,0.8851754,86695.0,86689.0,0.3608]
[1764663797131,0.8851754,86695.0,86684.0,0.53692]
[1764663798944,0.8881754,86695.0,86684.0,0.53692]
[1764663799648,0.91463931,86695.0,86684.0,0.53692]
[1764663799851,0.8851768,86685.0,86684.0,1.21039]
[1764663800149,0.91164071,86685.0,86684.0,0.86561]
[1764663800351,0.91164071,86685.0,86675.0,0.67347]
[1764663800352,0.676338,86676.0,86675.0,0.67347]
[1764663800554,0.676338,86676.0,86675.0,0.32869]
[1764663800739,0.70279323,86676.0,86675.0,0.32869]
[1764663800939,0.70279323,86676.0,86675.0,0.67347]
[1764663801252,0.676338,86676.0,86675.0,0.67347]
[1764663801643,0.676338,86676.0,86675.0,0.67447]
[1764663802749,0.8851788,86670.0,86669.0,1.03427]
[1764663803044,0.6763388,86670.0,86669.0,1.03427]
[1764663803241,0.677338,86676.0,86675.0,0.87183]
[1764663803434,0.012538,86676.0,86675.0,0.87183]
[1764663803637,0.342538,86676.0,86675.0,0.87183]
[1764663803942,0.1580009,86676.0,86675.0,0.87183]
[1764663804145,0.001,86676.0,86675.0,0.87183]
[1764663804850,0.7023374,86680.0,86679.0,0.67347]
[1764663805042,1.0371374,86680.0,86679.0,0.67347]
[1764663806846,1.2459774,86680.0,86679.0,0.67347]
[1764663807442,1.2459774,86680.0,86679.0,0.67447]
[1764663807853,1.2459774,86680.0,86679.0,0.67347]
[1764663808152,1.2469774,86680.0,86679.0,0.67347]
[1764663809849,0.3618,86680.0,86679.0,1.07347]
[1764663810050,0.00017299,86684.0,86679.0,1.07347]
[1764663810051,0.0115345,86703.0,86700.0,0.19828]
[1764663810256,0.3608,86704.0,86703.0,0.67347]
[1764663810557,1.0256,86704.0,86703.0,0.67347]
[1764663810854,1.0256,86704.0,86703.0,0.6850044]
[1764663811056,1.0256,86704.0,86703.0,0.67347]
[1764663811656,1.0296,86704.0,86703.0,0.67347]
[1764663811851,0.004,86704.0,86703.0,0.67347]
[1764663812056,0.004,86704.0,86703.0,0.96347]
[1764663812955,0.004,86704.0,86703.0,1.46347]
[1764663814251,0.3608,86711.0,86703.0,1.46347]
[1764663814458,0.00017299,86712.0,86711.0,0.68086]
[1764663814647,0.00017299,86712.0,86711.0,1.2179]
[1764663815252,0.00017299,86712.0,86711.0,1.2294333]
[1764663815946,0.00017299,86712.0,86711.0,1.7294333]
[1764663816257,0.00017299,86712.0,86711.0,1.7179]
[1764663820553,0.00017299,86712.0,86711.0,1.7209]
[1764663821152,0.00017299,86712.0,86711.0,1.7199]
[1764663823160,0.00017299,86712.0,86711.0,1.7179]
[1764663823362,0.69984299,86712.0,86711.0,1.7199]
[1764663823555,0.34729299,86712.0,86711.0,1.7199]
[1764663823756,0.00017299,86712.0,86711.0,1.7179]
[1764663823957,0.00017299,86712.0,86711.0,1.7199]
[1764663824367,0.69984299,86712.0,86711.0,1.7179]
[1764663824558,0.69984299,86712.0,86711.0,1.7199]
[1764663824749,0.00017299,86712.0,86711.0,1.7199]
[1764663824956,0.69984299,86712.0,86711.0,1.7199]
[1764663827061,0.69984299,86712.0,86711.0,1.7189]
[1764663827260,0.50487358,86712.0,86711.0,1.7189]
[1764663829763,0.50487358,86712.0,86711.0,1.7179]
[1764663830366,0.50487358,86712.0,86711.0,1.7189]
[1764663830864,0.50487358,86712.0,86711.0,1.7179]
[1764663831071,0.3608,86715.0,86714.0,0.68086]
[1764663832069,0.3586523,86719.0,86718.0,0.6923924]
[1764663832261,0.7112023,86719.0,86718.0,0.68086]
[1764663832571,0.7112023,86719.0,86718.0,0.69289431]
[1764663832764,0.0115323,86719.0,86718.0,0.69289431]
[1764663833370,0.0115323,86719.0,86718.0,0.69389431]
[1764663833771,0.7112023,86719.0,86718.0,0.69389431]
[1764663835062,0.7112023,86719.0,86718.0,1.19389431]
[1764663836265,0.69967,86719.0,86718.0,1.19389431]
[1764663836466,0.34712,86719.0,86718.0,1.19389431]
[1764663837660,0.01164498,86720.0,86719.0,0.68086]
[1764663838281,0.35876498,86720.0,86719.0,0.68086]
[1764663838573,0.03812488,86720.0,86719.0,0.68086]
[1764663838762,0.02659268,86720.0,86719.0,1.04166]
[1764663838967,0.00011278,86720.0,86719.0,1.04166]
[1764663839272,0.00011278,86720.0,86719.0,3.04166]
[1764663839473,0.02662848,86720.0,86719.0,3.04166]
[1764663840769,0.02662848,86720.0,86719.0,3.0531923]
[1764663841372,0.73783058,86720.0,86719.0,1.71766]
[1764663841568,1.30810058,86720.0,86719.0,0.5]
[1764663841975,0.7112037,86708.0,86696.0,0.5368]
[1764663842164,0.7377194,86708.0,86702.0,0.01179149]
[1764663842970,0.7377194,86708.0,86696.0,0.5368]
[1764663843470,0.7387194,86708.0,86696.0,0.5368]
[1764663843980,0.7271857,86708.0,86696.0,0.5368]
[1764663844183,0.65791,86697.0,86696.0,1.15963]
[1764663844378,0.6844257,86697.0,86696.0,1.15963]
[1764663845480,0.6844257,86697.0,86696.0,1.65963]
[1764663848483,0.65791,86697.0,86696.0,1.65963]
[1764663849079,0.51669441,86697.0,86696.0,1.65963]
[1764663849979,0.20590441,86697.0,86696.0,1.65963]
[1764663850187,0.011535,86698.0,86697.0,0.62283]
[1764663850385,0.0115345,86702.0,86701.0,0.62283]
[1764663851375,0.0115342,86705.0,86701.0,0.62283]
[1764663851572,0.0115345,86702.0,86701.0,0.5]
[1764663851886,0.0115345,86702.0,86701.0,1.12283]
[1764663852082,0.30324,86709.0,86706.0,0.19373]
[1764663852379,0.0115338,86707.0,86706.0,0.81656]
[1764663852587,0.03825189,86707.0,86706.0,0.81656]
[1764663852978,0.02671809,86707.0,86706.0,0.81656]
[1764663853183,0.3608,86719.0,86709.0,0.62283]
[1764663853184,0.0115331,86713.0,86709.0,0.62283]
[1764663853480,0.38751889,86710.0,86709.0,0.62283]
[1764663854883,0.0115331,86713.0,86709.0,0.6343635]
[1764663855088,0.0115331,86713.0,86712.0,0.81656]
[1764663855281,0.0115327,86716.0,86715.0,0.62283]
[1764663855481,0.65228176,86716.0,86715.0,0.62283]
[1764663857187,0.6255653,86696.0,86695.0,0.00017299]
[1764663857488,1.01307483,86696.0,86695.0,0.62300299]
[1764663859690,1.01307483,86696.0,86695.0,0.81673299]
[1764663859691,1.01407483,86696.0,86695.0,0.81673299]
[1764663861294,0.6255669,86684.0,86683.0,0.30342]
[1764663861598,0.6255678,86677.0,86676.0,0.81656]
[1764663862600,0.6255678,86677.0,86676.0,1.31656]
[1764663863007,0.9863678,86677.0,86676.0,1.31656]
[1764663865093,0.3723378,86677.0,86676.0,1.31656]
[1764663865297,0.372337,86684.0,86683.0,0.62283]
[1764663865496,0.675577,86684.0,86683.0,0.62283]
[1764663865699,0.986367,86684.0,86683.0,0.62283]
[1764663867292,0.372337,86684.0,86683.0,0.62283]
[1764663868302,0.372337,86684.0,86683.0,0.62383]
[1764663868602,0.372337,86684.0,86683.0,1.12383]
[1764663869001,0.011537,86684.0,86683.0,1.12383]
[1764663869397,0.00017299,86685.0,86683.0,1.12383]
[1764663869599,0.32249979,86685.0,86684.0,0.62283]
[1764663869807,0.62573979,86685.0,86684.0,0.62283]
[1764663870709,0.01170979,86685.0,86684.0,0.62283]
[1764663871701,0.60662979,86685.0,86684.0,1.12283]
[1764663871898,0.60662979,86685.0,86684.0,1.12383]
[1764663873096,0.60662979,86685.0,86684.0,1.66079]
[1764663873291,0.60662979,86685.0,86684.0,1.65979]
[1764663873604,0.60662979,86685.0,86684.0,1.66079]
[1764663873996,0.60662979,86685.0,86684.0,1.65979]
[1764663878316,0.00017299,86685.0,86684.0,1.65979]
[1764663879506,0.00017299,86685.0,86684.0,2.02059]
[1764663879715,0.00017299,86685.0,86684.0,2.44059]
[1764663879910,0.00017299,86685.0,86684.0,2.44259]
[1764663880110,0.00017299,86685.0,86684.0,2.17259]
[1764663880509,0.00017299,86685.0,86684.0,2.67259]
[1764663881310,0.00017299,86685.0,86684.0,2.52259]
[1764663882014,0.00017299,86685.0,86684.0,2.95259]
[1764663882502,0.00017299,86685.0,86684.0,2.95059]
[1764663882702,0.00017299,86685.0,86684.0,2.95259]
[1764663883100,0.00017299,86685.0,86684.0,2.95059]
[1764663883306,0.00017299,86685.0,86684.0,2.95259]
[1764663884006,0.00017299,86685.0,86684.0,2.62259]
[1764663884218,0.00017299,86685.0,86684.0,2.9241269]
[1764663884606,0.0115359,86692.0,86691.0,0.60416]
[1764663884909,0.0115359,86692.0,86691.0,1.55108]
[1764663885109,0.0115359,86692.0,86691.0,1.14108]
[1764663886213,0.0115359,86692.0,86691.0,1.64208]
[1764663886714,0.03861783,86692.0,86691.0,2.14208]
[1764663888514,0.03861783,86692.0,86691.0,2.14108]
[1764663888719,0.03861783,86692.0,86691.0,2.14208]
[1764663889224,0.03861783,86692.0,86691.0,2.14308]
[1764663889717,0.03861783,86692.0,86691.0,2.14108]
[1764663889917,0.03861783,86692.0,86691.0,2.14208]
[1764663890512,0.62230783,86692.0,86691.0,2.14208]
[1764663892119,0.62230783,86692.0,86691.0,2.14108]
[1764663894825,0.62230783,86692.0,86691.0,1.0]
[1764663895218,0.62230783,86692.0,86691.0,0.5]
[1764663895609,0.62230783,86692.0,86684.0,0.53692]
[1764663895610,0.5952268,86685.0,86684.0,1.14108]
[1764663895813,0.62230873,86685.0,86684.0,1.14108]
[1764663896424,0.62230873,86685.0,86684.0,1.64108]
[1764663898424,0.62230873,86685.0,86684.0,1.64208]
[1764663899519,0.45864326,86685.0,86684.0,1.64208]
[1764663900330,0.47018006,86685.0,86684.0,1.64208]
[1764663901717,0.47018006,86685.0,86684.0,1.10516]
[1764663901918,0.47018006,86685.0,86684.0,0.60516]
[1764663902434,0.47018006,86685.0,86684.0,0.001]
[1764663902819,0.47018006,86685.0,86670.0,0.33994509]
[1764663902820,0.5631086,86671.0,86670.0,0.72286]
[1764663903021,0.95099053,86671.0,86670.0,0.54112]
[1764663903217,0.39942053,86671.0,86670.0,0.71398]
[1764663903421,0.38788193,86671.0,86670.0,0.71398]
[1764663903931,0.38788193,86671.0,86670.0,0.7255188]
[1764663904225,0.3608,86671.0,86670.0,0.7255188]
[1764663904432,0.00011278,86679.0,86678.0,0.54112]
[1764663904633,0.02731111,86679.0,86678.0,0.54112]
[1764663905425,0.03884871,86679.0,86678.0,0.54112]
[1764663906029,0.02731111,86679.0,86678.0,0.54212]
[1764663906226,0.00011278,86679.0,86678.0,1.04212]
[1764663908135,0.00011278,86679.0,86678.0,1.5536577]
[1764663908524,0.00011278,86679.0,86678.0,1.5526577]
[1764663908725,0.00011278,86679.0,86678.0,1.5536577]
[1764663909037,0.0115369,86685.0,86684.0,0.54112]
[1764663909333,0.03872737,86685.0,86684.0,0.54112]
[1764663909528,0.59029737,86685.0,86684.0,0.54112]
[1764663909731,0.55157,86679.0,86678.0,1.04212]
[1764663909934,0.95109371,86679.0,86678.0,0.502]
[1764663910434,0.95109371,86679.0,86678.0,0.002]
[1764663911033,0.5631088,86670.0,86669.0,1.07804]
[1764663911231,0.5631088,86670.0,86669.0,0.54112]
[1764663911232,0.59029491,86670.0,86669.0,0.54112]
[1764663912232,0.55157,86669.0,86668.0,0.00017299]
[1764663912529,0.57875611,86669.0,86668.0,0.00017299]
[1764663913230,0.57875611,86669.0,86668.0,9e-08]
[1764663913430,0.55157,86661.0,86660.0,0.54112]
[1764663913732,0.59029611,86661.0,86660.0,0.54112]
[1764663913929,0.59029611,86661.0,86645.0,0.01176701]
[1764663913930,0.55157,86656.0,86610.0,0.0099999]
[1764663914239,0.55157,86656.0,86598.0,0.12091]
[1764663914240,0.2944872,86607.0,86606.0,0.54112]
[1764663914439,0.0115472,86607.0,86606.0,0.54112]
[1764663914736,0.3723472,86607.0,86606.0,0.54112]
[1764663915041,0.6552872,86607.0,86606.0,0.54112]
[1764663915222,0.6554175,86607.0,86606.0,0.54112]
[1764663915422,0.9240475,86607.0,86606.0,0.54112]
[1764663915630,0.9240475,86607.0,86606.0,0.54312]
[1764663916033,0.6554175,86607.0,86606.0,0.54312]
[1764663917425,0.9240475,86607.0,86606.0,0.54312]
[1764663920145,0.6554175,86607.0,86606.0,0.54312]
[1764663920335,0.3724775,86607.0,86606.0,0.54312]
[1764663920939,0.6554175,86607.0,86606.0,0.54312]
[1764663921248,0.9240475,86607.0,86606.0,0.54312]
[1764663922033,0.3724775,86607.0,86606.0,0.54312]
[1764663925148,0.3724775,86607.0,86606.0,1.04312]
[1764663928741,0.3609303,86607.0,86606.0,1.04312]
[1764663928941,0.3609303,86607.0,86606.0,1.39312]
[1764663929150,3e-07,86607.0,86606.0,1.39312]
[1764663930356,3e-07,86607.0,86606.0,1.89312]
[1764663931040,0.0115464,86613.0,86612.0,0.5837]
[1764663931245,0.0001732,86615.0,86614.0,0.59376]
[1764663931853,0.5886932,86615.0,86614.0,0.59376]
[1764663932352,0.58874605,86615.0,86614.0,0.59376]
[1764663933660,0.58874605,86615.0,86614.0,1.09376]
[1764663934060,0.28492605,86615.0,86614.0,1.09376]
[1764663934256,0.28492605,86615.0,86614.0,1.09476]
[1764663935055,0.28492605,86615.0,86614.0,0.59476]
[1764663935769,0.58266605,86615.0,86614.0,0.59476]
[1764663935961,0.00022605,86615.0,86614.0,0.59476]
[1764663936561,0.00022605,86615.0,86614.0,1.07127]
[1764663936562,0.60449605,86615.0,86614.0,1.07127]
[1764663938170,0.6328462,86615.0,86614.0,1.07127]
[1764663942870,0.6328462,86615.0,86614.0,1.09629]
[1764663943472,0.6328462,86615.0,86614.0,0.59629]
[1764663944472,0.46142273,86615.0,86614.0,0.59629]
[1764663944866,0.46142273,86615.0,86614.0,0.59529]
[1764663945774,0.60427,86605.0,86604.0,0.48042]
[1764663945970,0.60427,86605.0,86586.0,0.17064]
[1764663945971,0.6158182,86599.0,86598.0,0.7163732]
[1764663946175,0.64416835,86599.0,86598.0,0.5954632]
[1764663946974,0.64416835,86599.0,86598.0,0.5984632]
[1764663947482,0.70588397,86599.0,86598.0,0.5954632]
[1764663947775,0.70588397,86599.0,86598.0,0.5984632]
[1764663950178,0.64416835,86599.0,86598.0,0.5984632]
[1764663950673,0.64416835,86599.0,86598.0,0.5964632]
[1764663950973,0.64416835,86599.0,86598.0,0.3109532]
[1764663951372,0.64416835,86599.0,86598.0,0.5964632]
[1764663952468,0.64416835,86599.0,86598.0,0.0011732]
[1764663952670,0.6158204,86583.0,86582.0,0.64631]
[1764663952872,0.64417055,86583.0,86582.0,0.95609]
[1764663953171,0.64417055,86583.0,86582.0,1.45609]
[1764663953778,0.64417055,86583.0,86582.0,1.46009]
[1764663953972,0.64417055,86583.0,86582.0,1.96009]
[1764663955777,0.64417055,86583.0,86582.0,1.46009]
[1764663955972,0.03990055,86583.0,86582.0,0.96009]
[1764663956367,0.03990055,86583.0,86582.0,0.95709]
[1764663956977,0.02835015,86583.0,86582.0,0.95709]
[1764663957364,0.02835015,86583.0,86582.0,1.45709]
[1764663958077,0.02835015,86583.0,86582.0,1.95709]
[1764663959773,0.0115503,86584.0,86582.0,1.95709]
[1764663959979,0.0115503,86584.0,86583.0,0.76593]